fUSD/lending_fUSD_20250823
["ID","MTS","AMOUNT","RATE_DAILY","PERIOD"]
[381047303,1755972664182,-151.0,0.0002,2]
[381047304,1755972664191,-1136.266139,0.0002,2]
[381047305,1755972664200,-151.0,0.0002,2]
[381047306,1755972664209,-151.0,0.0002,2]
[381047307,1755972664219,-1136.266139,0.0002,2]
[381047308,1755972664230,-151.0,0.0002,2]
[381047309,1755972664243,-151.0,0.0002,2]
[381047310,1755972664252,-151.0,0.0002,2]
[381047311,1755972664262,-151.0,0.0002,2]
[381047312,1755972664271,-151.0,0.0002,2]
[381047313,1755972664281,-213.060546,0.0002,2]
[381047314,1755972664290,-1136.266139,0.0002,2]
[381047315,1755972664300,-151.0,0.0002,2]
[381047316,1755972664309,-1136.266139,0.0002,2]
[381047317,1755972664318,-262.037975,0.0002,2]
[381047318,1755972664327,-151.0,0.0002,2]
[381047319,1755972664336,-151.0,0.0002,2]
[381047320,1755972664346,-151.0,0.0002,2]
[381047321,1755972664355,-295.95616,0.0002,2]
[381047322,1755972664364,-151.0,0.0002,2]
[381047323,1755972664374,-1136.266139,0.0002,2]
[381047324,1755972664384,-268.022233,0.0002,2]
[381047325,1755972664394,-1136.266139,0.0002,2]
[381047326,1755972664403,-268.022233,0.0002,2]
[381047327,1755972664413,-151.0,0.0002,2]
[381047328,1755972664431,-151.0,0.0002,2]
[381047329,1755972664451,-1136.266139,0.0002,2]
[381047330,1755972664464,-268.022233,0.0002,2]
[381047331,1755972664473,-1136.266139,0.0002,2]
[381047332,1755972664483,-268.022233,0.0002,2]
[381047333,1755972664492,-273.413389,0.0002,2]
[381047334,1755972664501,-538.25782,0.0002,2]
[381047335,1755972664511,-268.022233,0.0002,2]
[381047336,1755972664519,-538.25782,0.0002,2]
[381047337,1755972664528,-268.022233,0.0002,2]
[381047338,1755972664537,-251.994799,0.0002,2]
[381047339,1755972664546,-251.994799,0.0002,2]
[381047340,1755972664555,-538.25782,0.0002,2]
[381047341,1755972664564,-268.022233,0.0002,2]
[381047342,1755972664573,-251.994799,0.0002,2]
[381047343,1755972664582,-538.25782,0.0002,2]
[381047344,1755972664591,-268.022233,0.0002,2]
[381047345,1755972664600,-251.994799,0.0002,2]
[381047346,1755972664609,-538.25782,0.0002,2]
[381047347,1755972664618,-538.25782,0.0002,2]
[381047348,1755972664628,-251.994799,0.0002,2]
[381047349,1755972664638,-251.994799,0.0002,2]
[381047350,1755972664647,-166.909563,0.0002,2]
[381047351,1755972664656,-538.25782,0.0002,2]
[381047352,1755972664666,-166.909563,0.0002,2]
[381047353,1755972664675,-538.25782,0.0002,2]
[381047354,1755972664685,-251.994799,0.0002,2]
[381047355,1755972664694,-166.909563,0.0002,2]
[381047356,1755972664703,-251.994799,0.0002,2]
[381047357,1755972664712,-166.909563,0.0002,2]
[381047358,1755972664722,-166.909563,0.0002,2]
[381047359,1755972664731,-166.909563,0.0002,2]
[381047360,1755972664740,-166.909563,0.0002,2]
[381047361,1755972664749,-166.909563,0.0002,2]
[381047362,1755972664758,-151.0,0.0002,2]
[381047363,1755972664768,-151.0,0.0002,2]
[381047364,1755972664777,-151.0,0.0002,2]
[381047365,1755972664786,-151.0,0.0002,2]
[381047366,1755972664795,-151.0,0.0002,2]
[381047367,1755972664805,-151.0,0.0002,2]
[381047368,1755972664814,-151.0,0.0002,2]
[381047369,1755972664824,-151.0,0.0002,2]
[381047370,1755972664833,-151.0,0.0002,2]
[381047371,1755972664842,-151.0,0.0002,2]
[381047372,1755972664851,-173.95935,0.0002,2]
[381047373,1755972664860,-4000.0,0.0002,4]
[381047374,1755972664870,-151.0,0.0002,2]
[381047375,1755972664880,-151.0,0.0002,2]
[381047376,1755972664889,-151.0,0.0002,2]
[381047377,1755972664899,-151.0,0.0002,2]
[381047378,1755972664908,-151.0,0.0002,2]
[381047379,1755972664918,-151.0,0.0002,2]
[381047380,1755972664927,-151.0,0.0002,2]
[381047381,1755972664937,-189.745296,0.0002,2]
[381047382,1755972664946,-151.0,0.0002,2]
[381047383,1755972664956,-151.0,0.0002,2]
[381047384,1755972664966,-151.0,0.0002,2]
[381047385,1755972664975,-151.0,0.0002,2]
[381047386,1755972664984,-151.0,0.0002,2]
[381047387,1755972664994,-151.0,0.0002,2]
[381047388,1755972665003,-151.0,0.0002,2]
[381047389,1755972665012,-151.0,0.0002,2]
[381047390,1755972665022,-151.0,0.0002,2]
[381047391,1755972665031,-151.0,0.0002,2]
[381047392,1755972665048,-151.0,0.0002,2]
[381047393,1755972665058,-151.0,0.0002,2]
[381047394,1755972665068,-151.0,0.0002,2]
[381047395,1755972665078,-151.0,0.0002,2]
[381047396,1755972665087,-151.0,0.0002,2]
[381047397,1755972665096,-151.0,0.0002,2]
[381047398,1755972665105,-151.0,0.0002,2]
[381047399,1755972665115,-151.0,0.0002,2]
[381047400,1755972665125,-151.0,0.0002,2]
[381047401,1755972665134,-151.0,0.0002,2]
[381047402,1755972665143,-9113.9539307,0.0002001,2]
[381047403,1755972665152,-5026.97293878,0.0002001,2]
[381047404,1755972665161,-5772.0,0.0002001,2]
[381047405,1755972665171,-1655.0,0.00020057,2]
[381047406,1755972665180,-398.0,0.00020092,2]
[381047407,1755972665189,-200.0,0.000201,7]
[381047408,1755972665198,-2179.37047,0.0002011,2]
[381047409,1755972665207,-150.0,0.00020128,2]
[381047410,1755972665217,-150.0,0.00020128,2]
[381047411,1755972665226,-150.0,0.00020128,2]
[381047412,1755972665236,-150.0,0.00020128,2]
[381047413,1755972665245,-500.0,0.00020128,2]
[381047414,1755972665255,-150.0,0.00020128,2]
[381047415,1755972665264,-150.0,0.00020128,2]
[381047416,1755972665273,-150.0,0.00020128,2]
[381047417,1755972665283,-985.0,0.00020128,2]
[381047418,1755972665292,-500.0,0.00020128,2]
[381047419,1755972665301,-572.0,0.00020128,2]
[381047420,1755972665311,-150.0,0.00020128,2]
[381047421,1755972665321,-150.0,0.00020128,2]
[381047422,1755972665339,-150.0,0.00020128,2]
[381047423,1755972665348,-500.0,0.00020128,2]
[381047424,1755972665357,-500.0,0.00020128,2]
[381047425,1755972665366,-150.0,0.00020128,2]
[381047426,1755972665376,-152.19,0.00020144,2]
[381047427,1755972665385,-207.0,0.00020155,2]
[381047428,1755972665395,-287.61899177,0.00020164,2]
[381047429,1755972665404,-1000.0,0.00020187,2]
[381047430,1755972665413,-1165.33,0.000202,6]
[381047431,1755972665423,-1960.0,0.000202,2]
[381047432,1755972665432,-5746.6085734,0.00020242,2]
[381047433,1755972665442,-5000.0,0.00020242,2]
[381047434,1755972665452,-5000.0,0.00020242,2]
[381047435,1755972665461,-5000.0,0.00020242,2]
[381047436,1755972665470,-5000.0,0.00020242,2]
[381047437,1755972665480,-162.380719,0.00020274,2]
[381047438,1755972665489,-207.0,0.00020284,2]
[381047439,1755972665499,-380.0,0.000203,2]
[381047440,1755972665508,-778.0,0.000203,2]
[381047441,1755972665517,-300.0,0.00020326,2]
[381047442,1755972665527,-150.0,0.00020402,2]
[381047443,1755972665535,-150.0,0.00020402,2]
[381047444,1755972665545,-150.0,0.00020402,2]
[381047445,1755972665555,-250.0,0.00020402,2]
[381047446,1755972665564,-500.0,0.00020402,2]
[381047447,1755972665574,-150.0,0.00020402,2]
[381047448,1755972665583,-200.0,0.00020402,2]
[381047449,1755972665593,-150.0,0.00020402,2]
[381047450,1755972665602,-985.0,0.00020402,2]
[381047451,1755972665612,-500.0,0.00020402,2]
[381047452,1755972665622,-572.0,0.00020402,2]
[381047453,1755972665631,-244.84615314,0.00020402,2]
[381047454,1755972665641,-150.0,0.00020402,2]
[381047455,1755972665650,-150.0,0.00020402,2]
[381047456,1755972665659,-150.0,0.00020402,2]
[381047457,1755972665670,-500.0,0.00020402,2]
[381047458,1755972665679,-200.0,0.00020402,2]
[381047459,1755972665688,-931.67247144,0.00020434,2]
[381047460,1755972665698,-398.0,0.00020457,2]
[381047461,1755972665707,-398.0,0.00020494,2]
[381047462,1755972665717,-2604.48,0.000205,2]
[381047463,1755972665726,-3000.0,0.000205,2]
[381047464,1755972665735,-3000.0,0.000205,2]
[381047465,1755972665745,-3000.0,0.000205,2]
[381047466,1755972665754,-3000.0,0.000205,2]
[381047467,1755972665764,-3002.36,0.000205,2]
[381047468,1755972665773,-200.0,0.0002051,7]
[381047469,1755972665783,-168.0,0.00020518,2]
[381047470,1755972665792,-678.06853863,0.00020521,2]
[381047471,1755972665802,-970.81403864,0.00020521,2]
[381047472,1755972665812,-1000.0,0.00020521,2]
[381047473,1755972665822,-1000.0,0.00020521,2]
[381047474,1755972665832,-1000.0,0.00020521,2]
[381047475,1755972665842,-1000.0,0.00020521,2]
[381047476,1755972665852,-1000.0,0.00020521,2]
[381047477,1755972665862,-1104.64875901,0.00020521,2]
[381047478,1755972665872,-4401.77,0.00020547,2]
[381047479,1755972665881,-185.98,0.00020548,2]
[381047480,1755972665892,-21044.27,0.00020548,2]
[381047481,1755972665901,-1425.0,0.0002055,2]
[381047482,1755972665911,-1425.0,0.0002057,2]
[381047483,1755972665921,-1425.0,0.00020571,2]
[381047484,1755972665931,-2179.37046,0.0002061,2]
[381047485,1755972665940,-398.0,0.00020624,2]
[381047486,1755972665950,-1425.0,0.00020642,2]
[381047487,1755972665960,-1425.0,0.00020657,2]
[381047488,1755972665970,-150.0,0.00020676,2]
[381047489,1755972665979,-150.0,0.00020676,2]
[381047490,1755972665989,-150.0,0.00020676,2]
[381047491,1755972665999,-500.0,0.00020676,2]
[381047492,1755972666009,-150.0,0.00020676,2]
[381047493,1755972666018,-150.0,0.00020676,2]
[381047494,1755972666028,-985.0,0.00020676,2]
[381047495,1755972666042,-500.0,0.00020676,2]
[381047496,1755972666051,-572.0,0.00020676,2]
[381047497,1755972666060,-150.0,0.00020676,2]
[381047498,1755972666070,-150.0,0.00020676,2]
[381047499,1755972666079,-500.0,0.00020676,2]
[381047500,1755972666090,-207.0,0.00020688,2]
[381047501,1755972666100,-22199.48763485,0.000207,2]
[381047502,1755972666113,-4743.48,0.000207,2]
[381047503,1755972666125,-1425.0,0.00020718,2]
[381047504,1755972666134,-1425.0,0.00020726,2]
[381047505,1755972666144,-6219.6903227,0.00020776,2]
[381047506,1755972666154,-13539.8151891,0.00020776,2]
[381047507,1755972666163,-5800.0,0.00020787,2]
[381047508,1755972666173,-1000.0,0.00020793,2]
[381047509,1755972666183,-5800.0,0.00020795,2]
[381047510,1755972666193,-5800.0,0.00020804,2]
[381047511,1755972666204,-5800.0,0.00020812,2]
[381047512,1755972666213,-5800.0,0.00020821,2]
[381047513,1755972666223,-168.3888056,0.00020822,2]
[381047514,1755972666233,-398.0,0.00020846,2]
[381047515,1755972666243,-332.12,0.00020851,2]
[381047516,1755972666253,-260.82625793,0.00020864,2]
[381047517,1755972666263,-2900.0,0.000209,7]
[381047518,1755972666273,-931.67247144,0.00020901,2]
[381047519,1755972666283,-200.0,0.0002091,7]
[381047520,1755972666293,-177.0,0.0002093,2]
[381047521,1755972666302,-398.0,0.00020932,2]
[381047522,1755972666311,-150.0,0.0002095,2]
[381047523,1755972666321,-250.0,0.0002095,2]
[381047524,1755972666331,-500.0,0.0002095,2]
[381047525,1755972666342,-150.0,0.0002095,2]
[381047526,1755972666352,-250.0,0.0002095,2]
[381047527,1755972666362,-985.0,0.0002095,2]
[381047528,1755972666372,-500.0,0.0002095,2]
[381047529,1755972666383,-572.0,0.0002095,2]
[381047530,1755972666393,-150.0,0.0002095,2]
[381047531,1755972666403,-150.0,0.0002095,2]
[381047532,1755972666413,-500.0,0.0002095,2]
[381047533,1755972666423,-400.0,0.0002097,2]
[381047534,1755972666433,-400.40279652,0.0002097,2]
[381047535,1755972666442,-700.0,0.0002097,2]
[381047536,1755972666452,-700.0,0.0002097,2]
[381047537,1755972666462,-700.0,0.0002097,2]
[381047538,1755972666471,-467.83328922,0.00020973,2]
[381047539,1755972666481,-500.0,0.00020973,2]
[381047540,1755972666491,-391.49855359,0.00020973,2]
[381047541,1755972666501,-500.0,0.00020973,2]
[381047542,1755972666511,-500.0,0.00020973,2]
[381047543,1755972666520,-1500.0,0.00020973,2]
[381047544,1755972666530,-500.0,0.00020973,2]
[381047545,1755972666540,-398.0,0.00020973,2]
[381047546,1755972666551,-150.0,0.00020977,2]
[381047547,1755972666560,-300.0,0.00020999,2]
[381047548,1755972666570,-300.0,0.00020999,2]
[381047549,1755972666580,-20000.0,0.00021,2]
[381047550,1755972666589,-320962.76466319,0.00021,2]
[381047551,1755972666599,-1168.95276544,0.00021,2]
[381047552,1755972666608,-192.94686565,0.00021,2]
[381047553,1755972666618,-200.0,0.00021,7]
[381047554,1755972666628,-10050.60204007,0.00021,2]
[381047555,1755972666638,-114218.81,0.00021,2]
[381047556,1755972666647,-151.0,0.00021,2]
[381047557,1755972666657,-151.0,0.00021,2]
[381047558,1755972666667,-219.722861,0.00021,2]
[381047559,1755972666676,-151.0,0.00021,2]
[381047560,1755972666686,-151.0,0.00021,2]
[381047561,1755972666695,-177.624919,0.00021,2]
[381047562,1755972666705,-151.0,0.00021,2]
[381047563,1755972666715,-151.0,0.00021,2]
[381047564,1755972666725,-151.0,0.00021,2]
[381047565,1755972666735,-187.557832,0.00021,2]
[381047566,1755972666745,-151.0,0.00021,2]
[381047567,1755972666756,-151.0,0.00021,2]
[381047568,1755972666766,-151.0,0.00021,2]
[381047569,1755972666777,-151.0,0.00021,2]
[381047570,1755972666787,-151.0,0.00021,2]
[381047571,1755972666797,-151.0,0.00021,2]
[381047572,1755972666808,-151.0,0.00021,2]
[381047573,1755972666817,-151.0,0.00021,2]
[381047574,1755972666827,-151.0,0.00021,2]
[381047575,1755972666837,-151.0,0.00021,2]
[381047576,1755972666847,-151.0,0.00021,2]
[381047577,1755972666856,-151.0,0.00021,2]
[381047578,1755972666866,-151.378738,0.00021,2]
[381047579,1755972666877,-152.935628,0.00021,2]
[381047580,1755972666888,-240.94727,0.00021,2]
[381047581,1755972666899,-240.94727,0.00021,2]
[381047582,1755972666909,-225.764965,0.00021,2]
[381047583,1755972666919,-240.94727,0.00021,2]
[381047584,1755972666930,-240.94727,0.00021,2]
[381047585,1755972666940,-498.173766,0.00021,2]
[381047586,1755972666950,-2183.826817,0.00021,2]
[381047587,1755972666959,-498.173766,0.00021,2]
[381047588,1755972666969,-151.0,0.00021,2]
[381047589,1755972666979,-498.173766,0.00021,2]
[381047590,1755972666988,-498.173766,0.00021,2]
[381047591,1755972666998,-1229.467304,0.00021,2]
[381047592,1755972667008,-1229.467304,0.00021,2]
[381047593,1755972667018,-1229.467304,0.00021,2]
[381047594,1755972667028,-151.0,0.00021,2]
[381047595,1755972667042,-1229.467304,0.00021,2]
[381047596,1755972667052,-151.0,0.00021,2]
[381047597,1755972667062,-154.040318,0.00021,2]
[381047598,1755972667072,-151.0,0.00021,2]
[381047599,1755972667083,-264.976177,0.00021,2]
[381047600,1755972667093,-151.0,0.00021,2]
[381047601,1755972667103,-169.468754,0.00021,2]
[381047602,1755972667114,-169.468754,0.00021,2]
[381047603,1755972667123,-169.468754,0.00021,2]
[381047604,1755972667133,-169.468754,0.00021,2]
[381047605,1755972667144,-151.0,0.00021,2]
[381047606,1755972667154,-151.292126,0.00021,2]
[381047607,1755972667163,-153.01609,0.00021,2]
[381047608,1755972667173,-151.0,0.00021,2]
[381047609,1755972667184,-151.0,0.00021,2]
[381047610,1755972667194,-151.0,0.00021,2]
[381047611,1755972667204,-151.0,0.00021,2]
[381047612,1755972667214,-151.0,0.00021,2]
[381047613,1755972667224,-151.0,0.00021,2]
[381047614,1755972667234,-637.430262,0.00021,2]
[381047615,1755972667244,-151.0,0.00021,2]
[381047616,1755972667254,-637.430262,0.00021,2]
[381047617,1755972667263,-151.0,0.00021,2]
[381047618,1755972667273,-637.430262,0.00021,2]
[381047619,1755972667283,-637.430262,0.00021,2]
[381047620,1755972667294,-151.0,0.00021,2]
[381047621,1755972667304,-151.0,0.00021,2]
[381047622,1755972667314,-287.253496,0.00021,2]
[381047623,1755972667324,-151.0,0.00021,2]
[381047624,1755972667334,-242.68268,0.00021,2]
[381047625,1755972667344,-151.0,0.00021,2]
[381047626,1755972667353,-151.0,0.00021,2]
[381047627,1755972667363,-151.0,0.00021,2]
[381047628,1755972667372,-151.0,0.00021,2]
[381047629,1755972667382,-151.0,0.00021,2]
[381047630,1755972667391,-151.0,0.00021,2]
[381047631,1755972667401,-196.177788,0.00021,2]
[381047632,1755972667410,-196.177788,0.00021,2]
[381047633,1755972667420,-196.177788,0.00021,2]
[381047634,1755972667429,-196.177788,0.00021,2]
[381047635,1755972667439,-151.0,0.00021,2]
[381047636,1755972667449,-151.0,0.00021,2]
[381047637,1755972667459,-151.0,0.00021,2]
[381047638,1755972667469,-220.620678,0.00021,2]
[381047639,1755972667479,-151.0,0.00021,2]
[381047640,1755972667488,-151.0,0.00021,2]
[381047641,1755972667499,-151.0,0.00021,2]
[381047642,1755972667511,-151.0,0.00021,2]
[381047643,1755972667521,-151.0,0.00021,2]
[381047644,1755972667532,-151.0,0.00021,2]
[381047645,1755972667542,-151.0,0.00021,2]
[381047646,1755972667551,-151.0,0.00021,2]
[381047647,1755972667562,-151.0,0.00021,2]
[381047648,1755972667572,-151.0,0.00021,2]
[381047649,1755972667581,-151.0,0.00021,2]
[381047650,1755972667591,-151.0,0.00021,2]
[381047651,1755972667601,-151.0,0.00021,2]
[381047652,1755972667610,-151.0,0.00021,2]
[381047653,1755972667620,-151.0,0.00021,2]
[381047654,1755972667630,-152.642055,0.00021,2]
[381047655,1755972667640,-151.0,0.00021,2]
[381047656,1755972667651,-151.0,0.00021,2]
[381047657,1755972667662,-151.0,0.00021,2]
[381047658,1755972667673,-151.0,0.00021,2]
[381047659,1755972667682,-151.0,0.00021,2]
[381047660,1755972667692,-151.0,0.00021,2]
[381047661,1755972667704,-706.594631,0.00021,2]
[381047662,1755972667714,-151.0,0.00021,2]
[381047663,1755972667724,-151.0,0.00021,2]
[381047664,1755972668016,-706.594631,0.00021,2]
[381047665,1755972668025,-151.0,0.00021,2]
[381047666,1755972668035,-706.594631,0.00021,2]
[381047667,1755972668047,-706.594631,0.00021,2]
[381047668,1755972668056,-615.248004,0.00021,2]
[381047669,1755972668065,-151.0,0.00021,2]
[381047670,1755972668075,-615.248004,0.00021,2]
[381047671,1755972668085,-615.248004,0.00021,2]
[381047672,1755972668094,-151.0,0.00021,2]
[381047673,1755972668103,-615.248004,0.00021,2]
[381047674,1755972668113,-1348.245914,0.00021,2]
[381047675,1755972668123,-2586.891149,0.00021,2]
[381047676,1755972668132,-1348.245914,0.00021,2]
[381047677,1755972668142,-2586.891149,0.00021,2]
[381047678,1755972668151,-1348.245914,0.00021,2]
[381047679,1755972668161,-2586.891149,0.00021,2]
[381047680,1755972668171,-400.0,0.00021,2]
[381047681,1755972668180,-1348.245914,0.00021,2]
[381047682,1755972668190,-2586.891149,0.00021,2]
[381047683,1755972668200,-1466.793809,0.00021,2]
[381047684,1755972668210,-1466.793809,0.00021,2]
[381047685,1755972668219,-1466.793809,0.00021,2]
[381047686,1755972668228,-173.232404,0.00021,2]
[381047687,1755972668238,-151.0,0.00021,2]
[381047688,1755972668247,-1466.793809,0.00021,2]
[381047689,1755972668258,-173.232404,0.00021,2]
[381047690,1755972668267,-151.0,0.00021,2]
[381047691,1755972668277,-173.232404,0.00021,2]
[381047692,1755972668286,-151.0,0.00021,2]
[381047693,1755972668296,-151.0,0.00021,2]
[381047694,1755972668307,-173.232404,0.00021,2]
[381047695,1755972668317,-176.347383,0.00021,2]
[381047696,1755972668327,-176.347383,0.00021,2]
[381047697,1755972668337,-151.0,0.00021,2]
[381047698,1755972668347,-151.0,0.00021,2]
[381047699,1755972668356,-176.347383,0.00021,2]
[381047700,1755972668366,-176.347383,0.00021,2]
[381047701,1755972668375,-151.0,0.00021,2]
[381047702,1755972668385,-151.0,0.00021,2]
[381047703,1755972668394,-151.0,0.00021,2]
[381047704,1755972668403,-200.0,0.00021,2]
[381047705,1755972668413,-200.0,0.00021,2]
[381047706,1755972668422,-200.0,0.00021,2]
[381047707,1755972668432,-200.0,0.00021,2]
[381047708,1755972668441,-200.0,0.00021,2]
[381047709,1755972668451,-200.0,0.00021,2]
[381047710,1755972668460,-200.0,0.00021,2]
[381047711,1755972668469,-200.0,0.00021,2]
[381047712,1755972668479,-200.0,0.00021,2]
[381047713,1755972668488,-200.0,0.00021,2]
[381047714,1755972668497,-200.0,0.00021,2]
[381047715,1755972668506,-200.0,0.00021,2]
[381047716,1755972668516,-200.0,0.00021,2]
[381047717,1755972668525,-200.0,0.00021,2]
[381047718,1755972668535,-200.0,0.00021,2]
[381047719,1755972668544,-200.0,0.00021,2]
[381047720,1755972668553,-200.0,0.00021,2]
[381047721,1755972668562,-200.0,0.00021,2]
[381047722,1755972668572,-200.0,0.00021,2]
[381047723,1755972668581,-200.0,0.00021,2]
[381047724,1755972668591,-200.0,0.00021,2]
[381047725,1755972668601,-200.0,0.00021,2]
[381047726,1755972668610,-200.0,0.00021,2]
[381047727,1755972668619,-200.0,0.00021,2]
[381047728,1755972668629,-200.0,0.00021,2]
[381047729,1755972668638,-151.0,0.00021,2]
[381047730,1755972668648,-202.562917,0.00021,2]
[381047731,1755972668657,-202.562917,0.00021,2]
[381047732,1755972668666,-202.562917,0.00021,2]
[381047733,1755972668675,-202.562917,0.00021,2]
[381047734,1755972668685,-207.077595,0.00021,2]
[381047735,1755972668694,-661.523033,0.00021,2]
[381047736,1755972668703,-151.0,0.00021,2]
[381047737,1755972668712,-661.523033,0.00021,2]
[381047738,1755972668722,-151.0,0.00021,2]
[381047739,1755972668731,-151.0,0.00021,2]
[381047740,1755972668740,-151.0,0.00021,2]
[381047741,1755972668750,-661.523033,0.00021,2]
[381047742,1755972668759,-151.0,0.00021,2]
[381047743,1755972668768,-151.0,0.00021,2]
[381047744,1755972668777,-661.523033,0.00021,2]
[381047745,1755972668786,-151.0,0.00021,2]
[381047746,1755972668795,-151.0,0.00021,2]
[381047747,1755972668805,-971.01112,0.00021,2]
[381047748,1755972668814,-151.0,0.00021,2]
[381047749,1755972668824,-151.0,0.00021,2]
[381047750,1755972668833,-971.01112,0.00021,2]
[381047751,1755972668842,-971.01112,0.00021,2]
[381047752,1755972668851,-395.416713,0.00021,2]
[381047753,1755972668861,-971.01112,0.00021,2]
[381047754,1755972668870,-395.416713,0.00021,2]
[381047755,1755972668879,-395.416713,0.00021,2]
[381047756,1755972668889,-235.783258,0.00021,2]
[381047757,1755972668898,-151.0,0.00021,2]
[381047758,1755972668907,-395.416713,0.00021,2]
[381047759,1755972668916,-405.480139,0.00021,2]
[381047760,1755972668926,-405.480139,0.00021,2]
[381047761,1755972668935,-405.480139,0.00021,2]
[381047762,1755972668946,-833.269058,0.00021,2]
[381047763,1755972668955,-405.480139,0.00021,2]
[381047764,1755972668965,-833.269058,0.00021,2]
[381047765,1755972668974,-833.269058,0.00021,2]
[381047766,1755972668983,-833.269058,0.00021,2]
[381047767,1755972668992,-545.828536,0.00021,2]
[381047768,1755972669003,-219.164289,0.00021,2]
[381047769,1755972669013,-151.0,0.00021,2]
[381047770,1755972669023,-545.828536,0.00021,2]
[381047771,1755972669034,-219.164289,0.00021,2]
[381047772,1755972669048,-545.828536,0.00021,2]
[381047773,1755972669058,-219.164289,0.00021,2]
[381047774,1755972669068,-545.828536,0.00021,2]
[381047775,1755972669077,-219.164289,0.00021,2]
[381047776,1755972669087,-811.5952,0.00021,2]
[381047777,1755972669096,-179.486436,0.00021,2]
[381047778,1755972669108,-151.0,0.00021,2]
[381047779,1755972669118,-179.486436,0.00021,2]
[381047780,1755972669129,-151.0,0.00021,2]
[381047781,1755972669138,-151.0,0.00021,2]
[381047782,1755972669147,-151.0,0.00021,2]
[381047783,1755972669157,-151.0,0.00021,2]
[381047784,1755972669166,-179.486436,0.00021,2]
[381047785,1755972669175,-179.486436,0.00021,2]
[381047786,1755972669185,-502.898451,0.00021,2]
[381047787,1755972669194,-151.0,0.00021,2]
[381047788,1755972669203,-502.898451,0.00021,2]
[381047789,1755972669213,-502.898451,0.00021,2]
[381047790,1755972669222,-502.898451,0.00021,2]
[381047791,1755972669231,-159.821228,0.00021,2]
[381047792,1755972669240,-159.821228,0.00021,2]
[381047793,1755972669250,-151.0,0.00021,2]
[381047794,1755972669259,-159.821228,0.00021,2]
[381047795,1755972669268,-159.821228,0.00021,2]
[381047796,1755972669278,-151.0,0.00021,2]
[381047797,1755972669287,-974.845297,0.00021,2]
[381047798,1755972669296,-974.845297,0.00021,2]
[381047799,1755972669306,-974.845297,0.00021,2]
[381047800,1755972669316,-974.845297,0.00021,2]
[381047801,1755972669325,-927.183729,0.00021,2]
[381047802,1755972669335,-927.183729,0.00021,2]